[Event "WYCC U18 Girls 2019"]
[Site "Mumbai"]
[Date "2019.10.09"]
[Round "8.3"]
[White "Yan, Tianqi"]
[Black "Sliwicka, Alicja"]
[Result "1-0"]
[ECO "C86"]
[WhiteElo "2236"]
[BlackElo "2307"]
[Annotator "ChessBase"]
[PlyCount "89"]
[EventDate "2019.10.02"]
[EventType "swiss"]
[EventCountry "IND"]
[SourceTitle "playchess.com"]
[Source "ChessBase"]
[SourceQuality "1"]
[TimeControl "40/5400+30:1800+30"]

1. e4 {[%emt 0:00:00]} e5 {[%emt 0:00:00]} 2. Nf3 {[%emt 0:00:00]} Nc6 {[%emt 0:00:00]} 3. Bb5 {[%emt 0:00:00]} a6 {[%emt 0:00:00]} 4. Ba4 {[%emt 0:00:00]} Nf6 {[%emt 0:00:00]} 5. O-O {[%emt 0:01:37]} Be7 {[%emt 0:00:02]} 6. Qe2 {[%emt 0:00:54]} b5 {[%emt 0:02:35]} 7. Bb3 {[%emt 0:00:08]} d6 {[%emt 0:06:55]} 8. c3 {[%emt 0:00:13]} O-O {[%emt 0:02:00]} 9. Rd1 {[%emt 0:01:57]} Na5 {[%emt 0:08:03]} 10. Bc2 {[%emt 0:00:10]} c5 {[%emt 0:00:55]} 11. d4 {[%emt 0:00:37]} Qc7 {[%emt 0:02:23]} 12. d5 {[%emt 0:01:17]} c4 {[%emt 0:06:32]} 13. b4 {[%emt 0:05:18]} cxb3 {[%emt 0:05:30]} 14. axb3 {[%emt 0:00:04]} Bg4 {[%emt 0:07:10]} 15. h3 {[%emt 0:17:27]} Bh5 {[%emt 0:01:13]} 16. Bb2 {[%emt 0:08:01]} Nd7 {[%emt 0:09:17]} 17. Ra2 {[%emt 0:06:24]} Nb7 {[%emt 0:03:43]} 18. b4 {[%emt 0:01:50]} Nb6 {[%emt 0:06:12]} 19. Nbd2 {[%emt 0:04:31]} Nc4 {[%emt 0:11:29]} 20. Nxc4 {[%emt 0:01:31]} bxc4 {[%emt 0:00:45]} 21. g4 {[%emt 0:12:51]} Bg6 {[%emt 0:00:09]} 22. Ba4 {[%emt 0:00:32]} a5 {[%emt 0:02:46]} 23. Bc6 {[%emt 0:03:57]} axb4 {[%emt 0:03:07]} 24. Rxa8 {[%emt 0:00:10]} Rxa8 {[%emt 0:00:04]} 25. cxb4 {[%emt 0:00:07]} Ra2 {[%emt 0:04:07]} 26. Ra1 {[%emt 0:00:18]} Rxa1+ {[%emt 0:00:31]} 27. Bxa1 {[%emt 0:00:04]} Nd8 {[%emt 0:01:40]} 28. Qxc4 {[%emt 0:00:53]} Nxc6 {[%emt 0:02:48]} 29. dxc6 {[%emt 0:02:46]} Bd8 {[%emt 0:01:34]} 30. Qd5 {[%emt 0:06:18]} Kf8 {[%emt 0:01:11]} 31. b5 {[%emt 0:02:30]} f6 {[%emt 0:01:03]} 32. Bc3 {[%emt 0:02:08]} Bf7 {[%emt 0:00:38]} 33. Qd3 {[%emt 0:01:18]} Qb8 {[%emt 0:04:59]} 34. Nd2 {[%emt 0:04:45]} Bb6 {[%emt 0:01:58]} 35. Bb4 {[%emt 0:01:15]} Ke7 {[%emt 0:00:56]} 36. Nc4 {[%emt 0:01:11]} Bxc4 {[%emt 0:00:10]} 37. Qxc4 {[%emt 0:00:04]} Bc7 {[%emt 0:01:48]} 38. Bd2 {[%emt 0:01:41]} Bb6 {[%emt 0:02:24]} 39. Be3 {[%emt 0:00:44]} Bxe3 {[%emt 0:00:11]} 40. c7 {[%emt 0:03:06]} Qc8 {[%emt 0:01:44]} 41. fxe3 {[%emt 0:30:07]} h5 {[%emt 0:30:56]} 42. b6 {[%emt 0:01:25]} Kd7 {[%emt 0:00:53]} 43. Qb5+ {[%emt 0:00:19]} Ke7 {[%emt 0:00:07]} 44. Qc6 {[%emt 0:00:14]} hxg4 {[%emt 0:00:39]} 45. b7 {[%emt 0:00:08]} 1-0

[Event "WYCC U18 Girls 2019"]
[Site "Mumbai"]
[Date "2019.10.09"]
[Round "8.4"]
[White "Serikbay, Assel"]
[Black "Obolentseva, Alexandra"]
[Result "0-1"]
[ECO "A62"]
[WhiteElo "2208"]
[BlackElo "2282"]
[Annotator "ChessBase"]
[PlyCount "112"]
[EventDate "2019.10.02"]
[EventType "swiss"]
[EventCountry "IND"]
[SourceTitle "playchess.com"]
[Source "ChessBase"]
[SourceQuality "1"]
[TimeControl "40/5400+30:1800+30"]

1. d4 {[%emt 0:00:00]} Nf6 {[%emt 0:00:00]} 2. c4 {[%emt 0:00:00]} e6 {[%emt 0:00:09]} 3. g3 {[%emt 0:00:00]} c5 {[%emt 0:00:08]} 4. d5 {[%emt 0:00:07]} exd5 {[%emt 0:00:07]} 5. cxd5 {[%emt 0:00:08]} d6 {[%emt 0:00:07]} 6. Nc3 {[%emt 0:00:17]} g6 {[%emt 0:00:10]} 7. Bg2 {[%emt 0:00:30]} Bg7 {[%emt 0:00:10]} 8. Nf3 {[%emt 0:00:16]} O-O {[%emt 0:00:09]} 9. O-O {[%emt 0:00:19]} Re8 {[%emt 0:00:09]} 10. Bf4 {[%emt 0:00:40]} a6 {[%emt 0:00:11]} 11. a4 {[%emt 0:00:32]} Nh5 {[%emt 0:00:10]} 12. Bg5 {[%emt 0:00:46]} Qc7 {[%emt 0:00:09]} 13. Qd2 {[%emt 0:03:44]} Nd7 {[%emt 0:00:31]} 14. Rfc1 {[%emt 0:03:37]} Rb8 {[%emt 0:00:10]} 15. a5 {[%emt 0:03:57]} b5 {[%emt 0:01:28]} 16. axb6 {[%emt 0:00:08]} Rxb6 {[%emt 0:00:22]} 17. Rab1 {[%emt 0:02:53]} Qb8 {[%emt 0:06:09]} 18. Qc2 {[%emt 0:18:11]} Ne5 {[%emt 0:12:09]} 19. Nxe5 {[%emt 0:07:59]} Rxe5 {[%emt 0:00:00]} 20. Bd2 {[%emt 0:01:06]} Re7 {[%emt 0:01:54]} 21. Re1 {[%emt 0:06:58]} Reb7 {[%emt 0:03:17]} 22. Bc1 {[%emt 0:00:27]} Bd7 {[%emt 0:01:07]} 23. e4 {[%emt 0:01:39]} Rb3 {[%emt 0:04:54]} 24. Ra1 {[%emt 0:11:46]} Rxb2 {[%emt 0:00:23]} 25. Bxb2 {[%emt 0:00:06]} Rxb2 {[%emt 0:00:04]} 26. Reb1 {[%emt 0:09:00]} Bxc3 {[%emt 0:00:10]} 27. Rxb2 {[%emt 0:00:03]} Qxb2 {[%emt 0:00:07]} 28. Qxb2 {[%emt 0:00:03]} Bxb2 {[%emt 0:00:09]} 29. Rxa6 {[%emt 0:00:08]} c4 {[%emt 0:04:11]} 30. Bf1 {[%emt 0:02:11]} c3 {[%emt 0:00:21]} 31. Bd3 {[%emt 0:00:44]} Bb5 {[%emt 0:00:28]} 32. Ra8+ {[%emt 0:00:09]} Kg7 {[%emt 0:00:05]} 33. Bc2 {[%emt 0:00:13]} Nf6 {[%emt 0:00:32]} 34. Rb8 {[%emt 0:00:46]} Be2 {[%emt 0:00:24]} 35. f4 {[%emt 0:21:15]} Bf3 {[%emt 0:00:59]} 36. e5 {[%emt 0:00:53]} dxe5 {[%emt 0:00:12]} 37. d6 {[%emt 0:00:22]} exf4 {[%emt 0:00:24]} 38. gxf4 {[%emt 0:01:37]} Bg4 {[%emt 0:00:38]} 39. Rb7 {[%emt 0:02:37]} Be6 {[%emt 0:01:17]} 40. Kf2 {[%emt 0:00:42]} Ba3 {[%emt 0:00:38]} 41. Rc7 {[%emt 0:31:58]} Bxd6 {[%emt 0:30:12]} 42. Rxc3 {[%emt 0:00:03]} Bxf4 {[%emt 0:00:08]} 43. h3 {[%emt 0:00:32]} Be5 {[%emt 0:00:34]} 44. Ra3 {[%emt 0:00:36]} Nh5 {[%emt 0:00:33]} 45. Bd1 {[%emt 0:00:59]} Nf4 {[%emt 0:00:34]} 46. h4 {[%emt 0:00:42]} h5 {[%emt 0:00:27]} 47. Ra5 {[%emt 0:00:47]} Bd4+ {[%emt 0:00:20]} 48. Kg3 {[%emt 0:00:06]} Nd3 {[%emt 0:00:09]} 49. Bc2 {[%emt 0:00:42]} Ne5 {[%emt 0:00:17]} 50. Ra4 {[%emt 0:00:35]} Bc5 {[%emt 0:00:07]} 51. Bd1 {[%emt 0:00:23]} Bd6 {[%emt 0:01:16]} 52. Ra6 {[%emt 0:00:48]} Nc4+ {[%emt 0:00:06]} 53. Kf2 {[%emt 0:00:11]} Bc5+ {[%emt 0:00:05]} 54. Kg3 {[%emt 0:00:08]} Ne3 {[%emt 0:00:05]} 55. Bf3 {[%emt 0:00:43]} Nf5+ {[%emt 0:00:07]} 56. Kh3 {[%emt 0:00:56]} Bf2 {[%emt 0:00:26]} 0-1

[Event "WYCC U18 Girls 2019"]
[Site "Mumbai"]
[Date "2019.10.09"]
[Round "8.5"]
[White "Munkhzul, Turmunkh"]
[Black "Khachatryan, Anna"]
[Result "1-0"]
[ECO "B32"]
[WhiteElo "2332"]
[BlackElo "2044"]
[Annotator "ChessBase"]
[PlyCount "219"]
[EventDate "2019.10.02"]
[EventType "swiss"]
[EventCountry "IND"]
[SourceTitle "playchess.com"]
[Source "ChessBase"]
[SourceQuality "1"]
[TimeControl "40/5400+30:1800+30"]

1. e4 {[%emt 0:00:00]} c5 {[%emt 0:00:00]} 2. Nf3 {[%emt 0:00:00]} Nc6 {[%emt 0:00:00]} 3. d4 {[%emt 0:00:00]} cxd4 {[%emt 0:00:02]} 4. Nxd4 {[%emt 0:00:00]} e5 {[%emt 0:00:16]} 5. Nb5 {[%emt 0:00:07]} d6 {[%emt 0:00:07]} 6. c4 {[%emt 0:00:45]} Be7 {[%emt 0:00:06]} 7. N1c3 {[%emt 0:00:21]} a6 {[%emt 0:00:16]} 8. Na3 {[%emt 0:00:11]} f5 {[%emt 0:00:06]} 9. exf5 {[%emt 0:00:12]} Bxf5 {[%emt 0:00:04]} 10. Bd3 {[%emt 0:00:13]} Be6 {[%emt 0:00:56]} 11. O-O {[%emt 0:00:57]} Nf6 {[%emt 0:00:47]} 12. Nc2 {[%emt 0:00:49]} O-O {[%emt 0:00:07]} 13. Ne3 {[%emt 0:00:41]} Qd7 {[%emt 0:09:36]} 14. Ncd5 {[%emt 0:07:46]} Bd8 {[%emt 0:01:56]} 15. b3 {[%emt 0:04:33]} Rb8 {[%emt 0:12:17]} 16. Ba3 {[%emt 0:10:24]} Nd4 {[%emt 0:09:05]} 17. Kh1 {[%emt 0:14:35]} Nxd5 18. cxd5 {[%emt 0:03:22]} Bf7 {[%emt 0:32:38]} 19. f4 {[%emt 0:02:29]} exf4 {[%emt 0:05:50]} 20. Rxf4 {[%emt 0:01:41]} Bg5 {[%emt 0:01:13]} 21. Rxd4 {[%emt 0:00:39]} Bxe3 {[%emt 0:01:45]} 22. Bxh7+ {[%emt 0:00:43]} Kxh7 {[%emt 0:00:56]} 23. Qd3+ {[%emt 0:00:09]} Bg6 {[%emt 0:09:06]} 24. Qxe3 {[%emt 0:00:19]} Rbe8 {[%emt 0:00:07]} 25. Qg3 {[%emt 0:02:09]} Qf5 {[%emt 0:02:20]} 26. Rg1 {[%emt 0:09:56]} Re4 {[%emt 0:06:44]} 27. Rxe4 {[%emt 0:07:54]} Qxe4 {[%emt 0:00:05]} 28. Qh3+ {[%emt 0:02:44]} Kg8 {[%emt 0:00:14]} 29. Qe6+ {[%emt 0:00:36]} Qxe6 {[%emt 0:00:07]} 30. dxe6 {[%emt 0:00:05]} Rf6 {[%emt 0:04:06]} 31. Re1 {[%emt 0:00:55]} Be4 {[%emt 0:00:30]} 32. e7 {[%emt 0:03:45]} Re6 {[%emt 0:00:05]} 33. Kg1 {[%emt 0:00:19]} Rxe7 {[%emt 0:00:04]} 34. Bxd6 {[%emt 0:00:05]} Re6 {[%emt 0:02:00]} 35. Bc5 {[%emt 0:02:49]} Kf7 {[%emt 0:00:40]} 36. h3 {[%emt 0:01:39]} Bc6 {[%emt 0:00:37]} 37. Rf1+ {[%emt 0:00:19]} Kg6 {[%emt 0:02:31]} 38. Rf2 {[%emt 0:00:45]} Re5 {[%emt 0:00:40]} 39. Bb6 {[%emt 0:00:54]} Rf5 40. Rd2 {[%emt 0:00:55]} Kf7 {[%emt 0:01:20]} 41. Kh2 {[%emt 0:31:47]} Ke6 {[%emt 0:30:33]} 42. h4 {[%emt 0:02:51]} Rf4 {[%emt 0:00:00]} 43. Kg3 {[%emt 0:00:00]} Kf5 {[%emt 0:00:00]} 44. Bc7 {[%emt 0:00:00]} Re4 {[%emt 0:00:00]} 45. Rf2+ {[%emt 0:00:00]} Ke6 {[%emt 0:00:00]} 46. Bb6 {[%emt 0:00:00]} g6 {[%emt 0:00:00]} 47. Bd8 {[%emt 0:00:00]} Rd4 {[%emt 0:00:00]} 48. Bg5 {[%emt 0:00:00]} Be4 {[%emt 0:00:00]} 49. Be3 {[%emt 0:00:00]} Rd7 {[%emt 0:00:00]} 50. Kf4 {[%emt 0:00:00]} Bb1 {[%emt 0:00:09]} 51. Rb2 {[%emt 0:00:00]} Bd3 {[%emt 0:00:47]} 52. g4 {[%emt 0:00:00]} Kf6 {[%emt 0:01:16]} 53. Rd2 {[%emt 0:00:00]} Rd5 {[%emt 0:01:35]} 54. Bb6 {[%emt 0:00:00]} Ke6 {[%emt 0:00:24]} 55. Rd1 {[%emt 0:00:00]} Bb5 {[%emt 0:01:42]} 56. Bd4 {[%emt 0:00:00]} Kf7 {[%emt 0:00:34]} 57. Rd2 {[%emt 0:00:00]} Ke6 {[%emt 0:00:34]} 58. Ke3 {[%emt 0:00:00]} Rd7 {[%emt 0:00:25]} 59. Rh2 {[%emt 0:00:00]} Kd5 60. Bf6 {[%emt 0:01:02]} Rf7 {[%emt 0:02:05]} 61. Bg5 {[%emt 0:00:36]} Bd7 {[%emt 0:00:24]} 62. Rg2 {[%emt 0:01:21]} Ke5 {[%emt 0:00:23]} 63. Bd8 {[%emt 0:02:34]} Bc6 {[%emt 0:00:09]} 64. Rg3 {[%emt 0:00:08]} Rd7 {[%emt 0:00:10]} 65. Ba5 {[%emt 0:01:00]} Rh7 {[%emt 0:00:33]} 66. Bc3+ {[%emt 0:00:35]} Ke6 {[%emt 0:00:04]} 67. Rh3 {[%emt 0:00:19]} Rf7 {[%emt 0:00:36]} 68. Bb2 {[%emt 0:01:14]} Bd5 {[%emt 0:00:36]} 69. Bc3 {[%emt 0:04:03]} Bc6 {[%emt 0:00:12]} 70. Bd2 {[%emt 0:00:05]} Rf1 {[%emt 0:00:35]} 71. Bc3 {[%emt 0:01:22]} Rh1 {[%emt 0:00:31]} 72. Rg3 {[%emt 0:00:50]} Rxh4 {[%emt 0:00:30]} 73. Kf4 {[%emt 0:00:12]} Rh2 {[%emt 0:01:04]} 74. a3 {[%emt 0:01:40]} Kf7 {[%emt 0:01:04]} 75. Kg5 {[%emt 0:00:25]} Rh1 {[%emt 0:00:36]} 76. Bb4 {[%emt 0:00:28]} Rd1 {[%emt 0:00:10]} 77. Re3 {[%emt 0:00:24]} Rd7 {[%emt 0:00:21]} 78. Kh6 {[%emt 0:00:32]} Bd5 {[%emt 0:00:59]} 79. Bc5 {[%emt 0:00:30]} Bc6 {[%emt 0:00:25]} 80. b4 {[%emt 0:00:39]} Bd5 {[%emt 0:00:25]} 81. a4 {[%emt 0:00:35]} Bc6 {[%emt 0:00:14]} 82. a5 {[%emt 0:00:05]} Kf6 {[%emt 0:00:53]} 83. Re1 {[%emt 0:02:43]} Rd3 {[%emt 0:00:32]} 84. Be3 {[%emt 0:01:34]} Kf7 {[%emt 0:00:32]} 85. Rf1+ {[%emt 0:02:04]} Ke6 {[%emt 0:00:05]} 86. Bc5 {[%emt 0:00:07]} Be4 {[%emt 0:00:06]} 87. Rf4 {[%emt 0:00:43]} Ke5 {[%emt 0:00:19]} 88. Rf7 {[%emt 0:00:11]} Rd1 {[%emt 0:00:49]} 89. Kg5 {[%emt 0:00:22]} Re1 {[%emt 0:01:11]} 90. Re7+ {[%emt 0:00:16]} Kd5 {[%emt 0:00:03]} 91. Rxb7 {[%emt 0:00:11]} Bd3 {[%emt 0:00:07]} 92. Rd7+ {[%emt 0:00:13]} Kc4 {[%emt 0:00:01]} 93. Kh6 {[%emt 0:03:07]} Re6 {[%emt 0:00:09]} 94. g5 {[%emt 0:01:00]} Kc3 {[%emt 0:00:46]} 95. Rb7 {[%emt 0:00:20]} Re2 {[%emt 0:00:10]} 96. Kg7 {[%emt 0:00:20]} Re5 {[%emt 0:00:21]} 97. Be7 {[%emt 0:00:32]} Re6 {[%emt 0:00:08]} 98. Kf8 {[%emt 0:00:26]} Kc4 {[%emt 0:00:18]} 99. Ke8 {[%emt 0:00:22]} Be4 {[%emt 0:00:06]} 100. Rc7+ {[%emt 0:00:23]} Kb5 {[%emt 0:00:17]} 101. Rc5+ {[%emt 0:00:24]} Ka4 {[%emt 0:00:05]} 102. Kd7 {[%emt 0:00:50]} Rxe7+ {[%emt 0:00:05]} 103. Kxe7 {[%emt 0:00:05]} Kxb4 {[%emt 0:00:02]} 104. Re5 {[%emt 0:00:11]} Bd3 {[%emt 0:00:05]} 105. Kf6 {[%emt 0:00:44]} Ka4 {[%emt 0:00:09]} 106. Rd5 {[%emt 0:00:09]} Bc2 {[%emt 0:00:08]} 107. Ke7 {[%emt 0:00:05]} Kb4 {[%emt 0:00:06]} 108. Kd6 {[%emt 0:00:09]} Bb3 {[%emt 0:00:24]} 109. Re5 {[%emt 0:00:06]} Bc2 {[%emt 0:00:23]} 110. Kc6 {[%emt 0:00:04]} 1-0

[Event "WYCC U18 Girls 2019"]
[Site "Mumbai"]
[Date "2019.10.09"]
[Round "8.6"]
[White "Urh, Zala"]
[Black "Muetsch, Annmarie"]
[Result "1-0"]
[ECO "E73"]
[WhiteElo "2105"]
[BlackElo "2266"]
[Annotator "ChessBase"]
[PlyCount "105"]
[EventDate "2019.10.02"]
[EventType "swiss"]
[EventCountry "IND"]
[SourceTitle "playchess.com"]
[Source "ChessBase"]
[SourceQuality "1"]
[TimeControl "40/5400+30:1800+30"]

1. d4 {[%emt 0:00:00]} Nf6 {[%emt 0:00:00]} 2. c4 {[%emt 0:00:00]} g6 {[%emt 0:00:00]} 3. Nc3 {[%emt 0:00:00]} Bg7 {[%emt 0:00:00]} 4. e4 {[%emt 0:00:00]} d6 {[%emt 0:00:00]} 5. Be2 {[%emt 0:00:12]} O-O {[%emt 0:00:01]} 6. Be3 {[%emt 0:00:10]} e5 {[%emt 0:00:18]} 7. d5 {[%emt 0:00:14]} Na6 {[%emt 0:00:13]} 8. g4 {[%emt 0:00:19]} Nc5 {[%emt 0:00:06]} 9. f3 {[%emt 0:00:07]} h5 {[%emt 0:00:07]} 10. g5 {[%emt 0:00:51]} Nh7 {[%emt 0:00:08]} 11. h4 {[%emt 0:00:58]} f6 {[%emt 0:00:06]} 12. gxf6 {[%emt 0:00:34]} Bxf6 {[%emt 0:00:07]} 13. Bf2 {[%emt 0:00:05]} Be7 {[%emt 0:00:08]} 14. Kd2 {[%emt 0:00:13]} c6 {[%emt 0:00:26]} 15. Kc2 {[%emt 0:02:16]} cxd5 {[%emt 0:03:32]} 16. Qxd5+ {[%emt 0:01:51]} Be6 {[%emt 0:01:23]} 17. Qd2 {[%emt 0:00:29]} Kg7 {[%emt 0:16:39]} 18. Nh3 {[%emt 0:12:12]} Rc8 {[%emt 0:04:08]} 19. Rag1 {[%emt 0:02:35]} Bxh3 {[%emt 0:20:07]} 20. Rxh3 {[%emt 0:00:16]} Rf4 {[%emt 0:00:25]} 21. Bg3 {[%emt 0:11:41]} Bxh4 {[%emt 0:14:53]} 22. Bxf4 {[%emt 0:02:44]} exf4 {[%emt 0:00:07]} 23. Qxf4 {[%emt 0:01:03]} Bg5 {[%emt 0:00:09]} 24. Qh2 {[%emt 0:03:29]} Ne6 {[%emt 0:00:39]} 25. Nd5 {[%emt 0:00:45]} Qf8 {[%emt 0:14:50]} 26. Rhg3 {[%emt 0:09:46]} Kh8 {[%emt 0:01:22]} 27. Qg2 {[%emt 0:04:07]} Rc5 {[%emt 0:03:13]} 28. b4 {[%emt 0:09:33]} Rxd5 {[%emt 0:00:21]} 29. cxd5 {[%emt 0:05:35]} Qc8+ {[%emt 0:06:45]} 30. Kb1 {[%emt 0:00:16]} Nd4 {[%emt 0:00:31]} 31. Bd3 {[%emt 0:04:23]} Qc3 {[%emt 0:05:05]} 32. f4 {[%emt 0:01:26]} Bf6 {[%emt 0:05:43]} 33. e5 {[%emt 0:04:30]} dxe5 {[%emt 0:00:05]} 34. Qb2 {[%emt 0:10:46]} Qxb2+ {[%emt 0:00:48]} 35. Kxb2 {[%emt 0:00:01]} exf4 {[%emt 0:00:46]} 36. Rxg6 {[%emt 0:00:08]} Nf3+ {[%emt 0:00:15]} 37. Rxf6 {[%emt 0:01:44]} Nxf6 {[%emt 0:00:17]} 38. Rg6 {[%emt 0:07:08]} Nd7 {[%emt 0:02:01]} 39. Rh6+ {[%emt 0:02:05]} Kg8 {[%emt 0:00:04]} 40. Rxh5 {[%emt 0:00:19]} Nfe5 {[%emt 0:00:56]} 41. Be4 {[%emt 0:33:31]} Nc4+ {[%emt 0:15:33]} 42. Kc3 {[%emt 0:00:00]} Nd6 {[%emt 0:00:12]} 43. Bf3 {[%emt 0:00:00]} Kg7 {[%emt 0:03:49]} 44. Rh4 {[%emt 0:00:00]} Nb5+ {[%emt 0:00:48]} 45. Kd2 {[%emt 0:00:00]} Kf6 {[%emt 0:03:27]} 46. Rxf4+ {[%emt 0:00:00]} Kg5 {[%emt 0:00:47]} 47. Rg4+ {[%emt 0:00:00]} Kf5 {[%emt 0:00:09]} 48. Rg7 {[%emt 0:00:00]} Ne5 {[%emt 0:00:22]} 49. Be2 {[%emt 0:00:00]} Nd6 {[%emt 0:00:31]} 50. Bd3+ {[%emt 0:00:00]} Kf4 {[%emt 0:00:56]} 51. a4 {[%emt 0:00:00]} a6 {[%emt 0:00:41]} 52. Kc3 {[%emt 0:00:00]} Nf3 {[%emt 0:01:21]} 53. Re7 {[%emt 0:00:00]} 1-0

[Event "WYCC U18 Girls 2019"]
[Site "Mumbai"]
[Date "2019.10.09"]
[Round "8.7"]
[White "Toshali, V."]
[Black "Harshini A"]
[Result "1/2-1/2"]
[ECO "D02"]
[WhiteElo "1868"]
[BlackElo "2230"]
[Annotator "ChessBase"]
[PlyCount "96"]
[EventDate "2019.10.02"]
[EventType "swiss"]
[EventCountry "IND"]
[SourceTitle "playchess.com"]
[Source "ChessBase"]
[SourceQuality "1"]
[TimeControl "40/5400+30:1800+30"]

1. d4 {[%emt 0:00:32]} Nf6 {[%emt 0:00:00]} 2. Nf3 {[%emt 0:00:08]} d5 {[%emt 0:00:17]} 3. Bf4 {[%emt 0:00:18]} c5 {[%emt 0:00:10]} 4. e3 {[%emt 0:00:16]} Nc6 {[%emt 0:00:11]} 5. Nbd2 {[%emt 0:00:45]} Bf5 {[%emt 0:03:49]} 6. dxc5 {[%emt 0:06:40]} e6 {[%emt 0:01:18]} 7. Nb3 {[%emt 0:13:37]} Be7 {[%emt 0:06:12]} 8. Nfd4 {[%emt 0:05:21]} O-O {[%emt 0:06:33]} 9. Nxc6 {[%emt 0:08:24]} bxc6 {[%emt 0:00:45]} 10. Ba6 {[%emt 0:00:33]} Qd7 {[%emt 0:03:08]} 11. O-O {[%emt 0:25:18]} Ne4 {[%emt 0:02:46]} 12. Qd4 {[%emt 0:00:47]} f6 {[%emt 0:01:18]} 13. Qb4 {[%emt 0:05:04]} e5 {[%emt 0:00:29]} 14. f3 {[%emt 0:03:57]} Rab8 {[%emt 0:01:28]} 15. Qa5 {[%emt 0:01:37]} Nxc5 {[%emt 0:04:58]} 16. Nxc5 {[%emt 0:01:30]} Bxc5 {[%emt 0:03:37]} 17. Qxc5 {[%emt 0:00:08]} exf4 {[%emt 0:00:04]} 18. e4 {[%emt 0:03:33]} Be6 {[%emt 0:03:06]} 19. b4 Rfd8 {[%emt 0:02:07]} 20. Rad1 {[%emt 0:07:57]} Rb6 {[%emt 0:03:57]} 21. Bc4 {[%emt 0:04:31]} Qf7 {[%emt 0:02:39]} 22. a3 {[%emt 0:04:22]} Rc8 {[%emt 0:02:10]} 23. Bd3 {[%emt 0:00:53]} f5 {[%emt 0:12:18]} 24. exd5 {[%emt 0:01:00]} cxd5 {[%emt 0:00:51]} 25. Qd4 {[%emt 0:00:33]} Qc7 {[%emt 0:01:00]} 26. Rfe1 {[%emt 0:00:25]} g6 {[%emt 0:04:10]} 27. Re5 {[%emt 0:01:23]} Qc3 {[%emt 0:01:20]} 28. Qxf4 {[%emt 0:00:32]} Qxa3 {[%emt 0:00:19]} 29. Rde1 {[%emt 0:02:27]} Bf7 {[%emt 0:13:12]} 30. b5 {[%emt 0:00:18]} Qc5+ {[%emt 0:02:17]} 31. Kh1 {[%emt 0:00:20]} Qd6 {[%emt 0:01:48]} 32. Qg3 {[%emt 0:00:41]} Kf8 {[%emt 0:05:08]} 33. Qh4 {[%emt 0:01:27]} Kg8 {[%emt 0:04:41]} 34. Qg3 {[%emt 0:00:12]} Kf8 {[%emt 0:00:09]} 35. Qh4 {[%emt 0:00:09]} Kg8 {[%emt 0:00:07]} 36. h3 {[%emt 0:00:07]} Rc7 {[%emt 0:01:41]} 37. Qh6 {[%emt 0:00:43]} Qd8 {[%emt 0:01:29]} 38. Qf4 {[%emt 0:00:35]} Rb8 {[%emt 0:00:58]} 39. Qg3 {[%emt 0:00:56]} Kf8 {[%emt 0:00:19]} 40. Qf4 {[%emt 0:00:05]} Kg8 {[%emt 0:01:32]} 41. h4 {[%emt 0:14:07]} h5 {[%emt 0:04:19]} 42. g3 {[%emt 0:01:20]} Rbb7 {[%emt 0:02:06]} 43. Qe3 {[%emt 0:03:13]} Qf6 {[%emt 0:02:52]} 44. Kg2 {[%emt 0:02:10]} Kg7 {[%emt 0:00:17]} 45. Re2 {[%emt 0:04:02]} Rd7 {[%emt 0:02:28]} 46. c3 {[%emt 0:01:30]} Rdc7 {[%emt 0:01:28]} 47. Qd4 {[%emt 0:00:54]} Rd7 {[%emt 0:00:49]} 48. f4 {[%emt 0:02:25]} Rdc7 1/2-1/2

[Event "WYCC U18 Girls 2019"]
[Site "Mumbai"]
[Date "2019.10.09"]
[Round "8.8"]
[White "Makhija, Aashna"]
[Black "Cervantes Landeiro, Thalia"]
[Result "1-0"]
[ECO "B90"]
[WhiteElo "2084"]
[BlackElo "2176"]
[Annotator "ChessBase"]
[PlyCount "77"]
[EventDate "2019.10.02"]
[EventType "swiss"]
[EventCountry "IND"]
[SourceTitle "playchess.com"]
[Source "ChessBase"]
[SourceQuality "1"]
[TimeControl "40/5400+30:1800+30"]

1. e4 {[%emt 0:02:09]} c5 {[%emt 0:00:00]} 2. Nf3 {[%emt 0:00:23]} d6 {[%emt 0:00:00]} 3. d4 {[%emt 0:00:07]} cxd4 {[%emt 0:00:00]} 4. Nxd4 {[%emt 0:00:12]} Nf6 {[%emt 0:00:01]} 5. Nc3 {[%emt 0:00:15]} a6 {[%emt 0:00:06]} 6. f3 {[%emt 0:00:15]} e5 {[%emt 0:00:18]} 7. Nb3 {[%emt 0:00:14]} Be6 {[%emt 0:00:23]} 8. Be3 {[%emt 0:00:26]} h5 {[%emt 0:00:31]} 9. Qd2 {[%emt 0:00:34]} Nbd7 {[%emt 0:00:50]} 10. O-O-O {[%emt 0:00:25]} Be7 {[%emt 0:01:10]} 11. Kb1 {[%emt 0:02:25]} b5 {[%emt 0:01:05]} 12. h3 {[%emt 0:01:10]} h4 {[%emt 0:00:37]} 13. f4 {[%emt 0:10:16]} b4 {[%emt 0:14:59]} 14. Nd5 {[%emt 0:11:42]} Nxe4 {[%emt 0:12:20]} 15. Qxb4 {[%emt 0:04:17]} Bxd5 {[%emt 0:05:55]} 16. Rxd5 {[%emt 0:01:08]} Ng3 {[%emt 0:02:57]} 17. Rg1 {[%emt 0:01:07]} O-O {[%emt 0:02:04]} 18. fxe5 {[%emt 0:12:15]} Nxe5 {[%emt 0:20:38]} 19. Bd3 {[%emt 0:12:42]} Nxd3 {[%emt 0:04:53]} 20. Rxd3 {[%emt 0:06:48]} a5 {[%emt 0:01:32]} 21. Qa4 {[%emt 0:05:05]} Bf6 {[%emt 0:06:35]} 22. Rgd1 {[%emt 0:05:40]} Nf5 {[%emt 0:03:54]} 23. Bf4 {[%emt 0:06:18]} Qe8 {[%emt 0:04:09]} 24. Qxe8 {[%emt 0:02:43]} Rfxe8 {[%emt 0:00:01]} 25. Rd5 {[%emt 0:09:46]} a4 {[%emt 0:06:27]} 26. Rxf5 {[%emt 0:00:43]} axb3 {[%emt 0:00:04]} 27. axb3 {[%emt 0:03:38]} Re2 {[%emt 0:00:44]} 28. Bxd6 {[%emt 0:00:28]} Rxg2 {[%emt 0:00:58]} 29. b4 {[%emt 0:00:20]} Rc8 {[%emt 0:05:54]} 30. Rc5 {[%emt 0:00:48]} Rd8 {[%emt 0:00:58]} 31. b5 {[%emt 0:00:34]} Rg5 {[%emt 0:02:27]} 32. Rxg5 {[%emt 0:00:22]} Bxg5 {[%emt 0:00:01]} 33. c4 {[%emt 0:00:40]} Be3 {[%emt 0:00:42]} 34. b4 {[%emt 0:00:30]} Rd7 {[%emt 0:02:14]} 35. c5 f5 {[%emt 0:00:39]} 36. b6 {[%emt 0:00:51]} f4 {[%emt 0:01:03]} 37. c6 {[%emt 0:00:38]} Rd8 {[%emt 0:00:13]} 38. c7 {[%emt 0:00:21]} Re8 {[%emt 0:00:03]} 39. b7 {[%emt 0:00:14]} 1-0

[Event "WYCC U18 Girls 2019"]
[Site "Mumbai"]
[Date "2019.10.09"]
[Round "8.9"]
[White "Hamedi Nia, Vesal"]
[Black "Kucharska, Honorata"]
[Result "1/2-1/2"]
[ECO "A54"]
[WhiteElo "2057"]
[BlackElo "2114"]
[Annotator "ChessBase"]
[PlyCount "102"]
[EventDate "2019.10.02"]
[EventType "swiss"]
[EventCountry "IND"]
[SourceTitle "playchess.com"]
[Source "ChessBase"]
[SourceQuality "1"]
[TimeControl "40/5400+30:1800+30"]

1. d4 Nf6 2. c4 d6 3. Nc3 e5 4. Nf3 e4 5. Nd2 Qe7 6. e3 g6 7. Be2 Bg7 8. O-O O-O 9. b4 h5 10. a4 Bf5 11. b5 Nbd7 12. Ba3 Rfe8 13. Nb3 Nf8 14. c5 N8h7 15. Na5 b6 16. cxd6 cxd6 17. Nc4 Red8 18. a5 bxa5 19. Nxa5 Qd7 20. Bb4 Ng5 21. Nc6 Re8 22. Ra6 Bh3 23. gxh3 Qxh3 24. f3 exf3 25. Bxf3 Ng4 26. Bxg4 hxg4 27. Bxd6 Qxe3+ 28. Kh1 Qxc3 29. Qxg4 Qd3 30. Qg2 Ne4 31. Ra3 Qxb5 32. Ne7+ Rxe7 33. Bxe7 Rc8 34. Raf3 Qd5 35. Rxf7 Rc6 36. R7f4 Re6 37. Bc5 a5 38. Qf3 Re8 39. Rg4 Qe6 40. Rfg1 g5 41. Rxe4 Qxe4 42. Qxe4 Rxe4 43. Rxg5 Kf7 44. Rd5 a4 45. Rd7+ Kg6 46. Kg2 Re2+ 47. Kf3 Rxh2 48. Ra7 a3 49. Kg3 Rd2 50. Ra6+ Kf5 51. Rxa3 Bxd4 1/2-1/2